bitfinex-derivatives/quotes_BTCF0:USTF0_20250127
["timestamp","ask_amount","ask_price","bid_price","bid_amount"]
[1737989852780,0.195679,102210.0,102200.0,0.00146754]
[1737989852971,0.556479,102210.0,102200.0,0.00161457]
[1737989854074,0.556479,102210.0,102200.0,0.19731157]
[1737989854279,0.3608,102210.0,102200.0,0.19731157]
[1737989854576,0.91946713,102230.0,102210.0,0.19567]
[1737989854773,0.69862643,102230.0,102220.0,0.195659]
[1737989854972,0.56687243,102230.0,102220.0,0.195659]
[1737989855371,0.55659303,102230.0,102220.0,0.195659]
[1737989856674,0.00014703,102230.0,102220.0,0.556459]
[1737989856981,3e-08,102230.0,102220.0,0.556459]
[1737989857376,0.36180003,102230.0,102220.0,0.196659]
[1737989857573,0.19662703,102230.0,102220.0,0.001]
[1737989857884,0.00100003,102230.0,102220.0,0.196646]
[1737989858783,0.00100003,102230.0,102220.0,0.557446]
[1737989858984,0.00100003,102230.0,102220.0,0.196646]
[1737989859478,0.00100003,102230.0,102220.0,0.557446]
[1737989859783,0.00100003,102230.0,102220.0,0.196646]
[1737989860684,0.55742703,102230.0,102220.0,0.196646]
[1737989861685,0.00100003,102230.0,102220.0,0.196646]
[1737989861871,0.36180003,102230.0,102220.0,0.196646]
[1737989862582,0.00100003,102230.0,102220.0,0.196646]
[1737989863176,0.19662703,102230.0,102220.0,0.196646]
[1737989863375,0.55742703,102230.0,102220.0,0.196646]
[1737989863575,0.19662703,102230.0,102220.0,0.196646]
[1737989863977,0.00100003,102230.0,102220.0,0.196646]
[1737989865378,0.55742703,102230.0,102220.0,0.196646]
[1737989865683,0.55742703,102230.0,102220.0,0.001]
[1737989865881,0.68046415,102230.0,102200.0,0.19729157]
[1737989866079,0.556465,102210.0,102200.0,0.19729157]
[1737989866482,0.556465,102210.0,102200.0,0.00161457]
[1737989866682,0.917265,102210.0,102200.0,0.19729857]
[1737989866886,0.7216,102210.0,102200.0,0.19729857]
[1737989867189,0.3608,102220.0,102210.0,0.195665]
[1737989867379,0.556446,102220.0,102210.0,0.195665]
[1737989867581,0.3608,102220.0,102210.0,0.195665]
[1737989867984,0.55643103,102230.0,102220.0,0.195646]
[1737989868191,0.19563103,102230.0,102220.0,0.195646]
[1737989868384,3e-08,102230.0,102220.0,0.195646]
[1737989868689,3e-08,102230.0,102220.0,0.556446]
[1737989871488,0.00100003,102230.0,102220.0,0.557446]
[1737989872291,0.00100003,102230.0,102220.0,0.57004035]
[1737989872683,0.195598,102250.0,102220.0,0.37439435]
[1737989872993,0.01419675,102260.0,102230.0,0.409705]
[1737989873294,0.55785009,102260.0,102250.0,0.195589]
[1737989874187,0.19705009,102260.0,102250.0,0.195589]
[1737989874389,0.55785009,102260.0,102250.0,0.195589]
[1737989874693,0.19705009,102260.0,102250.0,0.195589]
[1737989874993,0.55785009,102260.0,102250.0,0.196589]
[1737989875794,0.55785009,102260.0,102250.0,0.001]
[1737989876482,0.55785009,102260.0,102250.0,0.002]
[1737989877402,0.55785009,102260.0,102250.0,0.197589]
[1737989877701,0.55785009,102260.0,102250.0,0.002]
[1737989878084,0.76006281,102260.0,102240.0,0.00014703]
[1737989878286,0.244513,102240.0,102220.0,0.195645]
[1737989878593,0.556439,102230.0,102220.0,0.195645]
[1737989879696,0.00014703,102240.0,102230.0,0.195627]
[1737989880193,0.19575503,102240.0,102230.0,0.195627]
[1737989880597,0.00014703,102240.0,102230.0,0.195627]
[1737989880992,0.00246809,102260.0,102250.0,0.195589]
[1737989881187,0.00146809,102260.0,102250.0,0.7772297]
[1737989881993,0.00146809,102260.0,102250.0,0.556389]
[1737989883097,0.55783809,102260.0,102250.0,0.195589]
[1737989883601,0.60773109,102260.0,102250.0,0.001]
[1737989883991,0.195589,102250.0,102240.0,0.19575103]
[1737989884187,1.26525009,102260.0,102250.0,0.195589]
[1737989884394,0.00246809,102260.0,102250.0,0.195589]
[1737989884589,0.00346809,102260.0,102250.0,0.196589]
[1737989884786,0.00346809,102260.0,102250.0,0.557389]
[1737989885205,0.00246809,102260.0,102250.0,0.556389]
[1737989887097,0.00346809,102260.0,102250.0,0.557389]
[1737989887399,0.55983809,102260.0,102250.0,0.001]
[1737989887701,0.55983809,102260.0,102250.0,0.196589]
[1737989888204,0.55983809,102260.0,102250.0,0.001]
[1737989888898,0.10526199,102280.0,102250.0,0.9923367]
[1737989889200,0.10526199,102280.0,102270.0,0.55635]
[1737989890091,0.10526199,102280.0,102270.0,0.91715]
[1737989890292,0.10726199,102280.0,102270.0,0.91715]
[1737989890698,0.10726199,102280.0,102270.0,0.91815]
[1737989891197,0.10726199,102280.0,102270.0,1.1389907]
[1737989891390,9.9e-07,102280.0,102270.0,1.1389907]
[1737989891596,0.1,102300.0,102290.0,0.195512]
[1737989891796,0.1,102300.0,102290.0,0.556312]
[1737989893000,0.1,102300.0,102290.0,0.917112]
[1737989893508,0.1,102300.0,102290.0,1.1379527]
[1737989894303,0.1,102300.0,102290.0,1.1389527]
[1737989895212,0.1,102300.0,102290.0,1.1379527]
[1737989895903,0.36094703,102310.0,102300.0,0.195493]
[1737989896103,0.00014703,102310.0,102300.0,0.556293]
[1737989896295,0.00014703,102310.0,102300.0,2.729393]
[1737989896605,0.00014703,102310.0,102300.0,2.88582983]
[1737989896811,0.09153558,102330.0,102320.0,0.195455]
[1737989897000,0.09153558,102330.0,102320.0,0.71269183]
[1737989897708,0.09153558,102330.0,102320.0,1.07349183]
[1737989897709,1e-06,102330.0,102320.0,1.07349183]
[1737989898012,0.38014833,102340.0,102330.0,0.195436]
[1737989898198,0.09006858,102360.0,102350.0,0.195398]
[1737989898709,0.09006858,102360.0,102350.0,0.556198]
[1737989899108,0.09006858,102360.0,102350.0,0.71263483]
[1737989901107,0.09006858,102360.0,102350.0,0.196398]
[1737989901304,0.09006858,102360.0,102330.0,1.01177213]
[1737989901507,0.195417,102340.0,102330.0,0.195433]
[1737989901709,0.556217,102340.0,102320.0,0.20529683]
[1737989901902,0.556217,102340.0,102330.0,0.195433]
[1737989902106,0.09006858,102360.0,102350.0,0.195398]
[1737989902307,0.09006858,102360.0,102350.0,0.71363483]
[1737989902511,0.55630803,102370.0,102360.0,0.045378]
[1737989902703,0.36094703,102370.0,102350.0,0.001]
[1737989902898,0.195378,102360.0,102350.0,0.196388]
[1737989903305,0.556178,102360.0,102350.0,0.001]
[1737989903508,0.71261483,102360.0,102350.0,0.001]
[1737989903704,0.66378101,102360.0,102320.0,0.195454]
[1737989904009,0.195455,102320.0,102310.0,0.195461]
[1737989904210,0.3608,102340.0,102310.0,0.15643683]
[1737989904512,0.557225,102340.0,102330.0,0.195436]
[1737989904909,0.3618,102340.0,102330.0,0.35187283]
[1737989905104,0.3608,102340.0,102330.0,0.35187283]
[1737989905506,0.556217,102340.0,102330.0,0.195436]
[1737989905915,0.558217,102340.0,102330.0,0.196436]
[1737989906413,0.558217,102340.0,102330.0,0.001]
[1737989906814,0.869317,102340.0,102330.0,0.001]
[1737989907415,1.215817,102340.0,102330.0,0.001]
[1737989907611,0.195436,102330.0,102320.0,0.00014703]
[1737989907816,0.195474,102310.0,102300.0,0.19695702]
[1737989908006,0.556274,102310.0,102300.0,0.19695702]
[1737989908206,0.917074,102310.0,102300.0,0.00146602]
[1737989908517,0.195549,102280.0,102270.0,0.195548]
[1737989908717,0.556318,102290.0,102260.0,1.04824883]
[1737989908911,0.3608,102280.0,102270.0,0.195535]
[1737989909513,0.36094703,102290.0,102280.0,0.195531]
[1737989909715,0.36094703,102290.0,102280.0,0.35196783]
[1737989910221,0.36394703,102290.0,102280.0,0.195531]
[1737989910407,0.00314703,102290.0,102280.0,0.35196783]
[1737989910716,0.556279,102310.0,102280.0,0.35196783]
[1737989910717,0.3608,102310.0,102280.0,1.21003683]
[1737989910912,0.6871,102330.0,102320.0,0.195455]
[1737989910913,0.3608,102330.0,102320.0,0.195455]
[1737989911109,0.3608,102370.0,102320.0,0.87803683]
[1737989911309,0.3608,102370.0,102300.0,1.65643683]
[1737989911310,0.195362,102370.0,102360.0,0.195369]
[1737989911510,0.71259883,102370.0,102350.0,0.556191]
[1737989911714,0.195378,102360.0,102350.0,0.556191]
[1737989911908,0.556178,102360.0,102350.0,0.00014703]
[1737989913409,0.556178,102360.0,102350.0,0.19654503]
[1737989913410,0.204378,102360.0,102350.0,0.19654503]
[1737989913615,0.009,102360.0,102350.0,0.55734503]
[1737989914420,0.204378,102360.0,102350.0,0.55734503]
[1737989914714,0.206378,102360.0,102350.0,0.55734503]
[1737989915621,0.206378,102360.0,102350.0,0.19654503]
[1737989915923,0.204378,102360.0,102350.0,0.19754503]
[1737989916115,0.195378,102360.0,102350.0,0.19754503]
[1737989916919,0.556178,102360.0,102350.0,0.00514703]
[1737989917422,1.272178,102360.0,102350.0,0.00514703]
[1737989917822,1.272178,102360.0,102350.0,0.20054503]
[1737989918215,1.272178,102360.0,102350.0,0.00514703]
[1737989918416,1.274178,102360.0,102350.0,0.00414703]
[1737989918725,0.195419,102340.0,102330.0,0.195431]
[1737989918924,0.556207,102350.0,102340.0,0.195417]
[1737989919219,0.195417,102340.0,102330.0,0.195426]
[1737989919823,0.195417,102340.0,102330.0,0.556226]
[1737989920122,0.195436,102330.0,102320.0,0.00014703]
[1737989920331,0.556236,102330.0,102320.0,0.00014703]
[1737989920824,0.77667674,102330.0,102320.0,0.00014703]
[1737989921425,0.77667674,102330.0,102320.0,0.00314703]
[1737989922114,0.556236,102330.0,102320.0,0.00314703]
[1737989922319,0.6666,102340.0,102320.0,0.00314703]
[1737989922517,0.862034,102340.0,102330.0,0.195436]
[1737989922725,0.195434,102340.0,102330.0,0.195436]
[1737989923724,0.195436,102330.0,102320.0,0.55639903]
[1737989924219,0.195436,102330.0,102320.0,0.19559903]
[1737989924528,0.195436,102330.0,102320.0,0.00014703]
[1737989924925,0.557236,102330.0,102320.0,0.00014703]
[1737989925225,0.196436,102330.0,102320.0,0.00014703]
[1737989925526,0.557236,102330.0,102320.0,0.00014703]
[1737989925922,0.048863,102320.0,102290.0,0.195506]
[1737989926124,0.195493,102300.0,102290.0,0.195506]
[1737989926321,0.195512,102290.0,102280.0,0.55778824]
[1737989926519,0.195499,102300.0,102290.0,0.195507]
[1737989927020,0.195512,102290.0,102280.0,0.00161327]
[1737989927329,0.556312,102290.0,102280.0,0.00161327]
[1737989928721,0.557312,102290.0,102280.0,0.00161327]
[1737989929427,0.3628,102290.0,102260.0,0.195564]
[1737989929629,0.19555,102270.0,102260.0,0.195564]
[1737989929827,0.19557,102260.0,102250.0,0.556386]
[1737989930023,0.195553,102270.0,102260.0,0.195565]
[1737989930231,0.195534,102280.0,102270.0,0.195537]
[1737989930424,0.002,102290.0,102280.0,0.195531]
[1737989930733,0.00214703,102290.0,102280.0,0.556331]
[1737989930922,0.00214703,102290.0,102280.0,1.245031]
[1737989931117,0.00114703,102290.0,102280.0,1.612731]
[1737989931518,0.195458,102320.0,102310.0,0.195474]
[1737989931725,0.87081696,102330.0,102310.0,0.195474]
[1737989932028,0.195479,102310.0,102300.0,0.195487]
[1737989932633,0.556265,102320.0,102310.0,0.195474]
[1737989932834,0.55641203,102320.0,102310.0,0.195474]
[1737989933129,0.55641203,102320.0,102300.0,0.195484]
[1737989933435,0.55641203,102320.0,102310.0,0.195474]
[1737989933436,0.19561203,102320.0,102310.0,0.195474]
[1737989933929,0.00014703,102320.0,102290.0,0.67913577]
[1737989934137,0.195476,102310.0,102300.0,0.195486]
[1737989934824,0.41081003,102320.0,102290.0,0.36094703]
[1737989935123,0.556293,102300.0,102290.0,0.00014703]
[1737989935730,0.195493,102300.0,102290.0,0.00014703]
[1737989935930,0.556293,102300.0,102290.0,0.00014703]
[1737989936426,0.195493,102300.0,102290.0,0.00014703]
[1737989937020,0.556293,102300.0,102290.0,0.00014703]
[1737989937934,0.556293,102300.0,102250.0,0.58270742]
[1737989937935,0.195567,102270.0,102250.0,0.55784668]
[1737989938124,0.19557,102260.0,102250.0,0.55784668]
[1737989938632,0.19557,102260.0,102250.0,0.00146668]
[1737989938832,0.77681074,102260.0,102250.0,0.00146668]
[1737989939029,0.195598,102250.0,102230.0,0.3608]
[1737989939225,0.195598,102250.0,102240.0,0.00014703]
[1737989939630,0.195598,102250.0,102240.0,0.19575503]
[1737989940535,0.195598,102250.0,102240.0,0.00014703]
[1737989940834,0.556398,102250.0,102240.0,0.00114703]
[1737989941428,0.195646,102220.0,102210.0,0.889057]
[1737989941941,0.195665,102210.0,102200.0,0.65794639]
[1737989942235,0.556465,102210.0,102200.0,0.10146739]
[1737989942431,0.195665,102210.0,102200.0,0.10146739]
[1737989942635,0.195665,102210.0,102200.0,0.29715139]
[1737989942839,0.556465,102210.0,102200.0,0.10146739]
[1737989943139,0.55595827,102210.0,102200.0,0.10146739]
[1737989943737,0.55695827,102210.0,102200.0,0.11646739]
[1737989944535,0.47200024,102210.0,102190.0,9.802e-05]
[1737989944729,0.556484,102200.0,102190.0,9.802e-05]
[1737989945130,0.66668424,102200.0,102190.0,9.802e-05]
[1737989945739,0.78928355,102200.0,102160.0,0.556558]
[1737989945928,0.195742,102170.0,102160.0,0.195758]
[1737989946336,0.11346285,102170.0,102160.0,0.195758]
[1737989946636,0.30920485,102170.0,102150.0,0.8692392]
[1737989947041,0.30935188,102170.0,102150.0,0.8692392]
[1737989947236,0.30935188,102170.0,102160.0,0.009]
[1737989947426,0.30935188,102170.0,102160.0,0.018]
[1737989947739,0.57229075,102170.0,102130.0,0.60563797]
[1737989947931,0.77703974,102140.0,102130.0,0.60563797]
[1737989948135,0.58124074,102140.0,102100.0,0.1]
[1737989948436,1.13789774,102110.0,102100.0,0.1]
[1737989948841,1.2478551,102110.0,102100.0,0.1]
[1737989949337,0.30581436,102110.0,102100.0,0.4608]
[1737989949538,0.10995736,102110.0,102100.0,0.1]
[1737989949741,0.10995736,102110.0,102100.0,0.656676]
[1737989949942,0.10995736,102110.0,102100.0,0.87711674]
[1737989950631,0.00014703,102130.0,102120.0,0.195838]
[1737989950942,0.10253485,102130.0,102120.0,0.556638]
[1737989951242,0.0014694,102170.0,102120.0,0.58124074]
[1737989951533,0.11446599,102170.0,102160.0,0.556561]
[1737989952940,0.00014703,102180.0,102170.0,0.195742]
[1737989953134,0.00014703,102180.0,102170.0,0.556542]
[1737989953334,0.14983538,102200.0,102170.0,0.709735]
[1737989953541,0.14983538,102200.0,102190.0,0.556503]
[1737989953747,0.25221346,102200.0,102190.0,0.556503]
[1737989954237,0.25221346,102200.0,102190.0,2.056503]
[1737989954431,0.25221346,102200.0,102180.0,0.56066503]
[1737989954432,0.61301346,102200.0,102180.0,0.56066503]
[1737989954637,0.556503,102190.0,102180.0,0.19586503]
[1737989955038,0.65850028,102190.0,102180.0,0.19586503]
[1737989955435,0.46279728,102190.0,102180.0,0.19586503]
[1737989955640,0.10199728,102190.0,102180.0,0.55666503]
[1737989956041,0.0323542,102200.0,102180.0,0.58138777]
[1737989956241,0.0343542,102200.0,102190.0,0.556503]
[1737989956432,0.14269242,102200.0,102190.0,0.556503]
[1737989956947,0.14069242,102200.0,102190.0,0.556503]
[1737989957641,0.14369242,102200.0,102190.0,0.556503]
[1737989957845,0.14069242,102200.0,102190.0,0.195703]
[1737989958042,0.14269242,102200.0,102190.0,0.195703]
[1737989958245,0.14269242,102200.0,102190.0,0.556503]
[1737989958549,0.14269242,102200.0,102190.0,0.3608]
[1737989958742,0.195703,102190.0,102180.0,0.55666703]
[1737989959044,0.195703,102190.0,102180.0,0.19586703]
[1737989959250,0.30005757,102190.0,102180.0,0.19586703]
[1737989959748,0.30005757,102190.0,102180.0,0.00014703]
[1737989959941,0.66085757,102190.0,102180.0,0.00014703]
[1737989961045,0.47115457,102190.0,102160.0,0.195757]
[1737989961248,0.11035457,102190.0,102170.0,0.3608]
[1737989961546,0.11135457,102190.0,102180.0,0.195723]
[1737989961748,0.11135457,102190.0,102180.0,0.556523]
[1737989962150,0.30706357,102190.0,102170.0,0.556534]
[1737989962447,0.30706357,102190.0,102170.0,0.55668103]
[1737989962448,0.30806357,102190.0,102170.0,0.55668103]
[1737989962647,0.30806357,102190.0,102180.0,0.195723]
[1737989962849,0.10835457,102190.0,102180.0,0.556523]
[1737989963145,0.10635457,102190.0,102180.0,0.556523]
[1737989963350,0.10835457,102190.0,102180.0,0.556523]
[1737989963549,0.10935457,102190.0,102180.0,0.556523]
[1737989964143,0.10635457,102190.0,102180.0,0.77696374]
[1737989964539,0.10635457,102190.0,102180.0,0.556523]
[1737989965141,0.10435457,102190.0,102180.0,0.556523]
[1737989965446,0.30106857,102190.0,102180.0,0.195728]
[1737989965649,0.10535457,102190.0,102180.0,0.556528]
[1737989965945,0.10535457,102190.0,102180.0,0.77696874]
[1737989966650,0.30106357,102190.0,102180.0,0.556528]
[1737989966946,0.10535457,102190.0,102180.0,0.556528]
[1737989967150,0.10535457,102190.0,102180.0,0.77696874]
[1737989967853,0.10535457,102190.0,102180.0,0.556528]
[1737989969452,0.30106457,102190.0,102180.0,0.195728]
[1737989970151,0.30106457,102190.0,102180.0,0.556528]
[1737989970152,0.10535457,102190.0,102180.0,0.556528]
[1737989970451,0.30106457,102190.0,102180.0,0.556528]
[1737989970652,0.10535457,102190.0,102180.0,0.556528]
[1737989970951,0.30106457,102190.0,102180.0,0.556528]
[1737989971147,0.10535457,102190.0,102180.0,0.556528]
[1737989974958,0.10535457,102190.0,102180.0,0.55676733]
[1737989975270,0.30107757,102190.0,102180.0,0.19596733]
[1737989975653,0.66187757,102190.0,102180.0,0.00023933]
[1737989975855,0.68659531,102190.0,102150.0,0.00146811]
[1737989976061,0.55658,102160.0,102150.0,0.19725811]
[1737989976247,0.55658,102160.0,102150.0,0.00146811]
[1737989976453,0.66306323,102160.0,102150.0,0.00146811]
[1737989976654,0.30226323,102160.0,102150.0,0.19726711]
[1737989977150,0.66306323,102160.0,102150.0,0.19726711]
[1737989977656,0.30226323,102160.0,102150.0,0.19726711]
[1737989977859,0.10648323,102160.0,102150.0,0.19726711]
[1737989978056,0.10848323,102160.0,102150.0,0.55806711]
[1737989978464,0.10848323,102160.0,102150.0,0.55906711]
[1737989979262,0.10848323,102160.0,102150.0,0.55806711]
[1737989979458,0.11048323,102160.0,102150.0,0.55806711]
[1737989980353,0.11048323,102160.0,102150.0,0.56925432]
[1737989980553,0.30626323,102160.0,102150.0,0.56925432]
[1737989980754,0.30626323,102160.0,102150.0,0.55806711]
[1737989980962,0.66706323,102160.0,102150.0,0.19726711]
[1737989981165,0.66706323,102160.0,102150.0,0.00146811]
[1737989981469,0.195838,102130.0,102120.0,0.19732262]
[1737989981863,0.29848191,102130.0,102120.0,0.00146862]
[1737989982058,0.29848191,102130.0,102120.0,0.19732562]
[1737989982275,0.65928191,102130.0,102120.0,0.19732562]
[1737989983369,0.65928191,102130.0,102120.0,0.00146862]
[1737989983572,0.195857,102120.0,102100.0,0.4608]
[1737989983866,0.556657,102120.0,102110.0,0.195876]
[1737989984066,0.66611269,102120.0,102110.0,0.195876]
[1737989984268,0.10945569,102120.0,102110.0,0.195876]
[1737989984971,0.30531269,102120.0,102110.0,0.195876]
[1737989986674,0.10945569,102120.0,102110.0,0.556676]
[1737989986978,0.10945569,102120.0,102110.0,2.056676]
[1737989987178,0.11045569,102120.0,102110.0,2.056676]
[1737989987372,0.11645569,102120.0,102110.0,2.056676]
[1737989987967,3e-08,102140.0,102110.0,2.1608]
[1737989988173,0.19723028,102170.0,102160.0,0.19578]
[1737989988481,0.30498027,102170.0,102160.0,0.19578]
[1737989988771,0.45559227,102160.0,102150.0,0.195792]
[1737989989181,0.55772121,102160.0,102150.0,0.195799]
[1737989989375,0.55772121,102160.0,102140.0,0.3608]
[1737989989376,0.195799,102150.0,102140.0,0.55676303]
[1737989989578,0.556599,102150.0,102140.0,0.00014703]
[1737989989785,0.195847,102130.0,102120.0,0.195854]
[1737989990177,0.195857,102120.0,102110.0,0.1973418]
[1737989990376,0.195876,102110.0,102100.0,0.656692]
[1737989990577,0.195876,102110.0,102100.0,0.1]
[1737989990777,0.6629593,102110.0,102100.0,0.1]
[1737989991083,0.19594,102080.0,102070.0,0.19595]
[1737989991480,0.3022233,102080.0,102070.0,0.19595]
[1737989991689,0.1062833,102080.0,102070.0,0.55675]
[1737989991879,0.1062833,102080.0,102070.0,0.19595]
[1737989992084,0.1062833,102080.0,102070.0,0.55675]
[1737989992287,0.1062833,102080.0,102070.0,0.55775]
[1737989993193,0.3022173,102080.0,102070.0,0.55775]
[1737989993392,0.1062833,102080.0,102070.0,0.55775]
[1737989994186,0.1072833,102080.0,102070.0,0.77819074]
[1737989994488,0.1082833,102080.0,102070.0,1.13039074]
[1737989994985,0.1072833,102080.0,102070.0,0.20295]
[1737989995188,0.3032173,102080.0,102070.0,0.20295]
[1737989995491,0.3022173,102080.0,102070.0,0.55775]
[1737989995692,0.1072833,102080.0,102070.0,0.56475]
[1737989995889,0.1072833,102080.0,102070.0,0.007]
[1737989995890,0.88445804,102080.0,102070.0,0.007]
[1737989996088,0.6640173,102080.0,102070.0,0.005]
[1737989996287,0.6640173,102080.0,102070.0,0.200953]
[1737989996989,0.6640173,102080.0,102070.0,0.005]
[1737989997289,0.6640173,102080.0,102070.0,0.200953]
[1737989998290,0.6640173,102080.0,102070.0,0.195953]
[1737989998488,0.6640173,102080.0,102060.0,0.195963]
[1737989998685,0.3608,102070.0,102040.0,0.01116422]
[1737989998886,0.3608,102060.0,102050.0,0.195986]
[1737989999292,0.196,102050.0,102040.0,0.196008]
[1737989999591,0.196013,102040.0,102020.0,0.3608]
[1737989999792,0.556813,102040.0,102030.0,0.19603]
[1737990000095,0.66436861,102040.0,102030.0,0.19603]
[1737990000294,0.68879635,102040.0,102000.0,0.1]
[1737990000593,0.58124074,102020.0,102010.0,0.196068]
[1737990000891,1.29908777,102040.0,102010.0,0.3608]
[1737990001091,6e-08,102020.0,102010.0,1.12632374]
[1737990001292,0.10785109,102040.0,102030.0,0.19603]
[1737990001588,0.93914074,102080.0,102040.0,0.048999]
[1737990001589,0.7187,102080.0,102040.0,0.048999]
[1737990001797,0.522323,102090.0,102070.0,0.3608]
[1737990002095,0.6299306,102090.0,102080.0,0.195934]
[1737990002291,0.1076076,102090.0,102080.0,0.195934]
[1737990002497,0.1076076,102090.0,102080.0,0.52734529]
[1737990002693,0.1076076,102090.0,102080.0,0.16654529]
[1737990002895,0.1076076,102090.0,102080.0,0.52734529]
[1737990003199,0.00014703,102100.0,102080.0,0.6608]
[1737990003493,0.66144717,102130.0,102120.0,0.195857]
[1737990003799,0.59121469,102130.0,102100.0,0.195886]
[1737990003995,0.195876,102110.0,102100.0,0.195886]
[1737990004485,0.10970752,102110.0,102100.0,0.556686]
[1737990005198,5.2e-07,102110.0,102100.0,0.556686]
[1737990005586,5.2e-07,102110.0,102090.0,0.01153237]
[1737990005791,0.195895,102100.0,102090.0,0.19605503]
[1737990005995,0.19788252,102110.0,102100.0,0.195895]
[1737990006199,0.197882,102110.0,102100.0,0.195895]
[1737990006501,0.195895,102100.0,102090.0,0.00014703]
[1737990006702,0.41633574,102100.0,102090.0,0.00014703]
[1737990006897,0.88797934,102100.0,102090.0,0.00014703]
[1737990007094,0.88797934,102100.0,102060.0,0.55676]
[1737990007095,0.195946,102080.0,102060.0,0.55676]
[1737990007295,0.195953,102070.0,102060.0,0.19596]
[1737990007603,0.3067776,102080.0,102070.0,0.195953]
[1737990007796,1.31601474,102100.0,102070.0,0.3608]
[1737990007797,0.88222001,102100.0,102070.0,0.3608]
[1737990007997,0.88222001,102100.0,102080.0,0.55673]
[1737990007998,0.19592,102090.0,102080.0,0.55673]
[1737990008198,0.4731556,102090.0,102070.0,0.556745]
[1737990008393,0.195933,102080.0,102070.0,0.55689203]
[1737990008596,0.77717374,102080.0,102070.0,0.00014703]
[1737990008795,0.88264792,102080.0,102070.0,0.00014703]
[1737990008993,0.69571492,102080.0,102030.0,0.3608]
[1737990009195,0.556808,102050.0,102040.0,0.19601]
[1737990009504,0.46627418,102050.0,102010.0,0.3608]
[1737990009701,0.556851,102020.0,102010.0,0.196065]
[1737990009999,0.556851,102020.0,102000.0,0.7692]
[1737990010201,0.196068,102010.0,102000.0,0.296083]
[1737990010401,0.3608,102010.0,102000.0,0.1]
[1737990010590,0.66335863,102010.0,102000.0,0.1]
[1737990010794,0.10649063,102010.0,102000.0,0.296087]
[1737990011301,0.10649063,102010.0,102000.0,0.656887]
[1737990011897,0.00014703,102030.0,102020.0,0.196049]
[1737990012100,0.00014703,102030.0,102020.0,0.556849]
[1737990012301,0.3608,102060.0,102020.0,0.409808]
[1737990012503,0.3608,102060.0,102030.0,0.3608]
[1737990012504,0.45111032,102060.0,102030.0,0.3608]
[1737990012703,0.20255823,102060.0,102050.0,0.195991]
[1737990013103,0.39853023,102060.0,102050.0,0.195991]
[1737990013597,0.20255823,102060.0,102050.0,0.195991]
[1737990013799,0.20255823,102060.0,102050.0,0.77723174]
[1737990014003,0.00014703,102070.0,102060.0,0.195972]
[1737990014202,0.00014703,102070.0,102060.0,0.556772]
[1737990014400,0.11274359,102070.0,102060.0,0.556772]
[1737990015603,0.12174359,102070.0,102060.0,0.892972]
[1737990016096,0.12674359,102070.0,102060.0,0.892972]
[1737990016302,0.12674359,102070.0,102060.0,0.556772]
[1737990016606,0.48754359,102070.0,102040.0,0.36094703]
[1737990016808,0.556791,102050.0,102040.0,0.19615403]
[1737990017009,0.41641574,102060.0,102050.0,0.195991]
[1737990017303,0.195991,102050.0,102040.0,0.19615103]
[1737990017506,0.556791,102050.0,102040.0,0.00014703]
[1737990017808,0.66772721,102050.0,102040.0,0.00014703]
[1737990018901,0.66772721,102050.0,102040.0,0.19615703]
[1737990019094,0.196043,102030.0,102020.0,0.196043]
[1737990019302,0.196043,102030.0,102010.0,0.3608]
[1737990019303,0.196066,102020.0,102000.0,0.296083]
[1737990019507,0.556868,102010.0,102000.0,0.296083]
[1737990019707,0.556868,102010.0,102000.0,0.1]
[1737990020012,0.196082,102000.0,101990.0,0.196104]
[1737990020507,0.11329679,102000.0,101990.0,0.196104]
[1737990021109,0.11329679,102000.0,101990.0,0.556904]
[1737990021306,0.11329679,102000.0,101990.0,0.196104]
[1737990021506,0.47409679,102000.0,101980.0,0.196102]
[1737990021810,0.11329679,102000.0,101990.0,0.196088]
[1737990022320,0.11329679,102000.0,101970.0,0.3608]
[1737990022508,0.196091,101990.0,101970.0,0.556911]
[1737990022710,0.196091,101990.0,101980.0,0.196108]
[1737990023009,0.196108,101980.0,101970.0,0.196122]
[1737990023211,0.3608,101980.0,101950.0,0.196161]
[1737990023409,0.3608,101970.0,101950.0,0.196161]
[1737990023616,0.556933,101970.0,101960.0,0.196146]
[1737990023817,0.66894402,101970.0,101960.0,0.196146]
[1737990024072,0.47281102,101970.0,101930.0,0.7309]
[1737990024248,0.3608,101950.0,101920.0,0.75332013]
[1737990024439,0.556969,101950.0,101930.0,0.556992]
[1737990024714,0.66912705,101950.0,101930.0,0.556992]
[1737990024918,0.11215805,101950.0,101940.0,0.196185]
[1737990025115,0.11215805,101950.0,101940.0,0.556985]
[1737990025303,0.11215805,101950.0,101940.0,0.196185]
[1737990025716,0.30832805,101950.0,101930.0,0.3608]
[1737990025916,0.30832805,101950.0,101940.0,0.196185]
[1737990026511,0.11215805,101950.0,101940.0,0.197185]
[1737990026909,0.11215805,101950.0,101940.0,0.557985]
[1737990027316,0.001,101970.0,101940.0,0.6608]
[1737990027507,0.001,101970.0,101960.0,0.3608]
[1737990027709,0.196034,102020.0,102000.0,0.196057]
[1737990027910,0.19605,102010.0,102000.0,0.196057]
[1737990028107,0.196069,102000.0,101990.0,0.556886]
[1737990028310,0.196069,102000.0,101980.0,0.556903]
[1737990028511,0.11173823,102000.0,101990.0,0.556888]
[1737990028707,0.3608,102060.0,102040.0,0.195992]
[1737990029021,0.10649129,102040.0,102030.0,0.556809]
[1737990029411,0.556791,102050.0,102040.0,0.00014703]
[1737990029616,1.23060803,102060.0,102040.0,0.36094703]
[1737990029811,0.10921795,102050.0,102040.0,0.55693903]
[1737990030115,0.195973,102050.0,102040.0,0.55693903]
[1737990030323,0.66599095,102050.0,102040.0,0.00014703]
[1737990030805,0.196031,102020.0,102010.0,0.3608]
[1737990031005,0.196031,102020.0,102000.0,0.556866]
[1737990031006,0.196069,102000.0,101990.0,0.00147054]
[1737990031408,0.30933997,102000.0,101990.0,0.00147054]
[1737990032310,0.30933997,102000.0,101990.0,0.19755854]
[1737990032511,0.30933997,102000.0,101990.0,0.00147054]
[1737990032921,0.30933997,102000.0,101990.0,0.19755854]
[1737990033107,0.31233997,102000.0,101990.0,0.00147054]
[1737990033714,0.11627097,102000.0,101990.0,0.55835854]
[1737990034320,0.11727097,102000.0,101990.0,0.55835854]